[Event "12th WLC Weekend 2022"]
[Site "Eindhoven"]
[Date "2022.05.15"]
[Round "5.20"]
[White "Van Helvoort, Rob"]
[Black "Verweij, David"]
[Result "1-0"]
[ECO "B06"]
[WhiteElo "2133"]
[BlackElo "1728"]
[Annotator "TA"]
[PlyCount "169"]
[EventDate "2022.05.13"]
[EventType "swiss"]
[EventCountry "NED"]
[SourceTitle "playchess.com"]
[Source "ChessBase"]
[SourceQuality "1"]
[TimeControl "5400+30"]

{[%evp 10,168,49,22,28,25,64,52,70,58,75,66,70,69,75,76,92,65,68,72,77,62,60,58,75,64,77,62,60,63,62,49,219,210,229,220,223,218,210,201,183,182,424,265,414,360,346,373,365,364,497,499,592,584,857,847,852,830,1435,1016,3450,3085,2222,1708,29985,5081,4263,4133,29977,1852,29982,1232,29983,1193,923,0,29979,1121,1005,966,1074,624,590,625,689,683,642,280,660,663,29987,29975,29991,934,795,199,193,193,206,201,205,205,181,176,224,212,306,306,307,307,291,307,240,239,306,303,308,302,299,286,282,298,296,292,279,230,326,286,328,328,305,299,29966,29969,29957,29963,29979,29980,29980,29981,29981,29982,29983,29984,29984,29983,29986,29986,29985,29986,29989,29990,29991,29992,29996,29997,29997,29998,29998,29999,29999]} 1. e4 {[%emt 0:00:16]} Nc6 {[%emt 0:00:34]} 2. Nf3 {[%emt 0:00:17]} g6 {[%emt 0:00:16]} 3. d4 {[%emt 0:01:34]} d6 {[%emt 0:00:23]} 4. c3 {[%emt 0:03:14]} Bg7 {[%emt 0:01:20]} 5. Bd3 {[%emt 0:00:29]} e5 {[%emt 0:02:39]} 6. dxe5 {[%emt 0:00:17]} dxe5 {[%emt 0:00:50] B06: Modern Defence.} 7. O-O {[%emt 0:00:49]} Nge7 {[%emt 0:00:31]} 8. b4 {[%emt 0:05:00]} a6 {[%emt 0:01:12] [#] White is slightly better.} 9. Qe2 $146 {[%emt 0:01:06]} ({Predecessor:} 9. a4 Be6 10. Qc2 O-O 11. Rd1 Qc8 12. Ba3 Re8 13. Nbd2 Na7 14. Ng5 b5 15. Nxe6 Qxe6 {1-0 (29) Martin,J (1882)-Jaumin,J (1850) France 2000}) 9... Bg4 {[%emt 0:02:11]} 10. Nbd2 {[%emt 0:05:13][%cal Bb1d2,Bd2c4,Bc4e3][%mdl 32]} O-O {[%emt 0:00:55]} 11. h3 {[%emt 0:01:08]} Bd7 {[%emt 0:03:50]} 12. a4 {[%emt 0:02:10]} Qc8 {[%emt 0:03:04]} 13. Ba3 {[%emt 0:05:24]} Re8 {[%emt 0:01:15]} 14. Nc4 {[%emt 0:16:35]} f6 {[%emt 0:06:06]} 15. Ne3 {[%emt 0:08:38]} Nd8 {[%emt 0:01:08]} 16. b5 {[%emt 0:00:18]} Ne6 {[%emt 0:06:11]} 17. Bc4 {[%emt 0:09:28] White is more active.} Kh8 {[%emt 0:05:58]} 18. g3 {[%emt 0:00:47]} axb5 {[%emt 0:08:00]} 19. axb5 {[%emt 0:00:20]} c6 {[%emt 0:02:48]} 20. b6 {[%emt 0:03:19]} f5 $2 {[%emt 0:03:17] [#] White leaves nothing to chance now.} (20... c5 $14) 21. exf5 $1 $18 {[%emt 0:08:16]} gxf5 {[%emt 0:00:47]} 22. Bxe7 {[%emt 0:00:16]} Rxa1 {[%emt 0:01:50]} 23. Rxa1 {[%emt 0:00:08]} Rxe7 {[%emt 0:04:19]} 24. Ra5 {[%emt 0:09:02]} (24. Nxf5 Nf4 25. gxf4 Bxf5) 24... Nf8 {[%emt 0:02:48] [#]} 25. Qa2 $1 {[%emt 0:01:07] Ra8 is the strong threat.} Qe8 {[%emt 0:02:48]} (25... Qd8 {might work better.}) 26. Ng5 {[%emt 0:02:04] Threatens to win with Qa3.} (26. Ra8 Qh5 $16) 26... Qh5 {[%emt 0:07:05]} (26... f4 {was worth a try.}) 27. Nf7+ {[%emt 0:00:52]} Rxf7 {[%emt 0:02:43]} 28. Bxf7 {[%emt 0:00:08]} Qxh3 {[%emt 0:00:26]} 29. Qc4 {[%emt 0:01:44] Inhibits f4.} ({Resist} 29. Ra8 Qh6 30. Qa3 f4 $18) 29... f4 {[%emt 0:02:08]} 30. gxf4 {[%emt 0:00:28]} Qh4 {[%emt 0:12:57]} 31. f5 {[%emt 0:02:33]} e4 {[%emt 0:01:15]} 32. Ra8 {[%emt 0:02:39] And now Qc5 would win.} Qe7 {[%emt 0:04:56] Prevents Qc5.} 33. Be6 {[%emt 0:01:03] Black must now prevent Bxd7.} Bxe6 {[%emt 0:06:39]} 34. Qxe6 {[%emt 0:00:35]} Qg5+ {[%emt 0:00:22]} 35. Kf1 {[%emt 0:03:13]} Qh4 {[%emt 0:00:58]} 36. f6 {[%emt 0:01:09]} Bh6 {[%emt 0:01:13]} 37. Qf5 {[%emt 0:01:34]} (37. Qf7 $142 Qg5 38. Rxf8+ Bxf8 39. Qxf8+ Qg8 40. Qe7 Qg5 41. Qe8+ Qg8 42. f7) 37... Qh1+ {[%emt 0:00:51]} 38. Ke2 {[%emt 0:00:03] White threatens Qe5 and mate.} Qb1 {[%emt 0:00:25]} 39. Qc5 {[%emt 0:04:14]} (39. Qe5 $142 Qd3+ 40. Ke1 Qb1+ 41. Nd1 Qb5 42. Qe7 Qg5 43. Rxf8+ Bxf8 44. Qxf8+ Qg8 45. Qe7) 39... Kg8 {[%emt 0:02:04]} 40. Qc4+ {[%emt 0:00:26]} Kh8 {[%emt 0:00:09]} 41. Qd4 {[%emt 0:00:58]} (41. Qf7 $142 Qd3+ 42. Ke1 Qxc3+ 43. Kf1 Qc5 44. Ng4 Qc1+ 45. Kg2 Qg5 46. Kh3) 41... Kg8 {[%emt 0:00:35]} 42. Qc4+ {[%emt 0:01:11]} (42. Ng4 $18 Qd3+ 43. Qxd3 exd3+ 44. Kxd3) 42... Kh8 {[%emt 0:00:05]} 43. f7 {[%emt 0:00:29]} (43. Qf7 $142 Qd3+ 44. Ke1 Qxc3+ 45. Kf1 Qc5 46. Ng4 Qc1+ 47. Kg2 Qg5 48. Kh3) 43... Kg7 {[%emt 0:01:08]} 44. Nf5+ {[%emt 0:00:19]} Kg6 {[%emt 0:00:46]} 45. Ng3 {[%emt 0:01:02]} Qc2+ {[%emt 0:00:17]} 46. Kf1 {[%emt 0:00:06]} Qd1+ {[%emt 0:00:11]} 47. Kg2 {[%emt 0:00:02]} Qf3+ {[%emt 0:00:13]} 48. Kg1 {[%emt 0:01:10]} (48. Kh3 $142) 48... Qd1+ $2 {[%emt 0:01:05]} (48... e3 49. Qd3+ Kxf7 50. Qf5+ Qxf5 51. Nxf5 Bg5) 49. Kh2 {[%emt 0:00:00]} e3 {[%emt 0:00:47]} 50. Qe4+ {[%emt 0:00:00]} Kg7 {[%emt 0:00:33]} 51. Nf5+ {[%emt 0:00:00]} (51. Qe7 $142 Bg5 52. Qxg5+ Kxf7 53. Qf5+ Kg7 54. Rxf8 Qg1+ 55. Kxg1 exf2+ 56. Qxf2 h5 57. Qf6+ Kh7 58. Rh8#) 51... Kf6 {[%emt 0:00:08]} 52. Qd4+ $2 {[%emt 0:01:46]} (52. Nxh6 Qh5+ 53. Kg2 Qxh6 54. fxe3) 52... Qxd4 {[%emt 0:00:10]} 53. Nxd4 {[%emt 0:00:04][%mdl 4096] Endgame KRN-KBN. Really sharp!} (53. cxd4 e2 54. Re8 Kxf5 55. Rxe2 Kf6 $17) 53... c5 {[%emt 0:00:53]} 54. Ne2 {[%emt 0:00:22]} exf2 {[%emt 0:00:16]} 55. Kg2 {[%emt 0:00:01]} Nd7 {[%emt 0:00:57]} 56. Ra7 {[%emt 0:00:58]} Nxb6 {[%emt 0:00:22]} (56... Kxf7 $142 57. Rxb7 (57. Kxf2 Ke6 $18) 57... Ke8 58. Kxf2 Bg5) 57. Rxb7 {[%emt 0:00:07]} Nd5 {[%emt 0:00:12]} (57... Nc4 {was called for.} 58. Ng3 (58. Kxf2 Bf8 $18) 58... Kg6) 58. Kxf2 {[%emt 0:00:20]} Bf8 {[%emt 0:00:35]} 59. Kf3 {[%emt 0:00:16]} Ne7 {[%emt 0:00:21]} 60. Ng3 {[%emt 0:00:16]} Kxf7 {[%emt 0:00:19]} 61. Ne4 {[%emt 0:00:11]} Ke6 {[%emt 0:00:28]} 62. Nxc5+ {[%emt 0:00:13]} Kd5 {[%emt 0:00:24]} 63. Ne4 {[%emt 0:00:59]} Kc6 {[%emt 0:00:12]} 64. Rb1 {[%emt 0:00:49]} Ng6 {[%emt 0:00:30]} 65. Rh1 {[%emt 0:00:32]} h6 {[%emt 0:00:23]} 66. Rh5 {[%emt 0:00:33] Inhibits Ne5+.} Bg7 {[%emt 0:00:22]} 67. Rc5+ {[%emt 0:00:28]} Kb6 {[%emt 0:00:26]} (67... Kb7 $142 68. Rd5 Kc7) 68. Rc8 {[%emt 0:00:30] Strongly threatening Rg8.} Ne7 {[%emt 0:01:02] Prevents Rg8.} 69. Re8 {[%emt 0:00:15]} Nd5 {[%emt 0:00:09]} 70. c4 {[%emt 0:00:20]} Nc3 $2 {[%emt 0:00:36]} (70... Nc7 $18 71. Re7 Bb2) 71. Re6+ {[%emt 0:00:33] White mates.} Ka5 {[%emt 0:00:17]} 72. Nxc3 {[%emt 0:00:25]} Bxc3 {[%emt 0:00:05]} 73. Rxh6 {[%emt 0:00:06] KR-KB} Kb4 {[%emt 0:00:30]} 74. Rc6 {[%emt 0:00:22]} Bd4 {[%emt 0:00:38]} 75. Ke4 {[%emt 0:00:07]} Bg1 {[%emt 0:00:24]} 76. Kd5 {[%emt 0:00:10]} Bf2 {[%emt 0:00:13]} 77. Rc7 {[%emt 0:00:25]} Ka5 {[%emt 0:00:18]} 78. Rb7 {[%emt 0:00:14]} Ka6 {[%emt 0:00:11]} 79. Kc6 {[%emt 0:00:25]} Be1 {[%emt 0:01:17]} 80. Rb1 {[%emt 0:00:27]} Bc3 {[%emt 0:00:16]} 81. Rb3 {[%emt 0:00:29]} Ba5 {[%emt 0:00:11]} 82. Ra3 {[%emt 0:00:15]} Ka7 {[%emt 0:00:05]} 83. Rxa5+ {[%emt 0:00:09]} Kb8 {[%emt 0:00:05]} 84. c5 {[%emt 0:00:18]} Kc8 {[%emt 0:00:05]} 85. Ra8# {[%emt 0:00:05] Weighted Error Value: White=0.65/Black=1.07} 1-0

[Event "12th WLC Weekend 2022"]
[Site "Eindhoven"]
[Date "2022.05.15"]
[Round "5.21"]
[White "Blijlevens, Pim"]
[Black "Van de Put, Jeroen"]
[Result "0-1"]
[ECO "A03"]
[WhiteElo "1958"]
[BlackElo "1987"]
[Annotator "TA"]
[PlyCount "62"]
[EventDate "2022.05.13"]
[EventType "swiss"]
[EventCountry "NED"]
[SourceTitle "playchess.com"]
[Source "ChessBase"]
[SourceQuality "1"]
[TimeControl "5400+30"]

{[%evp 9,62,12,12,-21,-14,-18,-7,-5,0,1,0,3,7,-50,11,2,12,-47,-39,-42,-28,-37,-29,-34,-37,-45,-31,-52,-78,-58,-56,-110,-102,-110,-116,-129,-119,-123,-148,-162,-160,-170,-116,-126,-119,-503,-502,-495,-490,-483,-479,-519,-512,-475,-466]} 1. f4 {[%emt 0:01:19]} c5 {[%emt 0:00:26]} 2. b3 {[%emt 0:00:14]} Nc6 {[%emt 0:00:16]} 3. Bb2 {[%emt 0:00:09]} Nf6 {[%emt 0:00:21]} 4. Nf3 {[%emt 0:00:18]} d5 {[%emt 0:02:01]} 5. e3 {[%emt 0:00:44]} a6 {[%emt 0:00:41]} 6. a4 {[%emt 0:02:26] A03: Bird's Opening with 1...d5.} Bg4 {[%emt 0:05:29]} 7. Be2 {[%emt 0:03:33]} e6 {[%emt 0:00:46]} 8. O-O {[%emt 0:01:52] [#] The position is equal.} Rc8 $146 {[%emt 0:01:21]} ({Predecessor:} 8... Bd6 9. Ne5 Bxe2 10. Nxc6 Bxd1 11. Nxd8 Bxc2 12. Nxb7 Be7 13. Be5 Bxb3 14. Nc3 O-O 15. a5 Nd7 16. Bc7 Rfc8 17. Bd6 Bxd6 18. Nxd6 Rc6 19. Nb7 Rb8 {0-1 (19) Batikiants,S (2195)-Zhenetl,R Krasnodar 1998}) 9. Ne5 {[%emt 0:00:54]} Bxe2 {[%emt 0:00:32]} 10. Qxe2 {[%emt 0:00:13]} Bd6 {[%emt 0:01:19]} 11. d3 {[%emt 0:04:59]} (11. Nxc6 $11 Rxc6 12. d3) 11... O-O {[%emt 0:01:08]} ({Black should play} 11... Bxe5 $15 12. fxe5 Nd7) 12. Nxc6 $11 {[%emt 0:03:19]} Rxc6 {[%emt 0:00:17]} 13. e4 {[%emt 0:00:23]} (13. Nd2 $11) 13... dxe4 $1 $15 {[%emt 0:04:49]} 14. dxe4 {[%emt 0:02:52] [#] aiming for e5.} c4 $1 {[%emt 0:00:14]} 15. Kh1 {[%emt 0:02:26] Black must now prevent e5.} cxb3 {[%emt 0:07:32]} 16. cxb3 {[%emt 0:01:53] Strongly threatening e5.} Bb4 {[%emt 0:01:08]} 17. Na3 {[%emt 0:03:42]} Bc3 {[%emt 0:03:37]} 18. Bxc3 {[%emt 0:02:30]} Rxc3 {[%emt 0:00:06]} 19. e5 {[%emt 0:10:50]} Nd5 {[%emt 0:04:24]} 20. Rf3 {[%emt 0:01:58] [#]} (20. Rab1 $15) 20... Qb6 $1 $17 {[%emt 0:03:22] And now ...Qxb3 would win.} 21. Rxc3 {[%emt 0:06:30]} Nxc3 {[%emt 0:00:05]} 22. Qc4 {[%emt 0:02:12]} Nd5 {[%emt 0:00:28] Black is more active.} 23. Nc2 {[%emt 0:07:03][%cal Of4f5]} Qf2 {[%emt 0:07:18]} 24. Rf1 {[%emt 0:01:16]} Qd2 {[%emt 0:00:14]} 25. f5 {[%emt 0:07:29]} b5 {[%emt 0:14:58]} (25... exf5 $19 26. Qd4 Qxd4 27. Nxd4 g6) 26. axb5 {[%emt 0:03:27]} axb5 $40 {[%emt 0:01:25][%mdl 128] Black goes for the king.} 27. Qxb5 {[%emt 0:05:24][%mdl 8192] This costs White the game.} Qxc2 $19 {[%emt 0:05:46] Black is clearly winning.} 28. fxe6 {[%emt 0:00:22]} fxe6 {[%emt 0:00:36]} 29. Rxf8+ {[%emt 0:01:00]} Kxf8 {[%emt 0:00:06]} 30. Qb8+ {[%emt 0:02:15]} Kf7 {[%emt 0:00:11][%cal Rc2d1]} 31. h3 {[%emt 0:00:14]} Qc7 {[%emt 0:00:53] Weighted Error Value: White=0.44/Black=0.12 (very precise)} 0-1

[Event "12th WLC Weekend 2022"]
[Site "Eindhoven"]
[Date "2022.05.15"]
[Round "5.22"]
[White "Lind, Jacco"]
[Black "Duson, Robin"]
[Result "0-1"]
[ECO "B47"]
[WhiteElo "1801"]
[BlackElo "1980"]
[Annotator "TA"]
[PlyCount "60"]
[EventDate "2022.05.13"]
[EventType "swiss"]
[EventCountry "NED"]
[SourceTitle "playchess.com"]
[Source "ChessBase"]
[SourceQuality "1"]
[TimeControl "5400+30"]

{[%evp 9,60,18,39,13,26,24,44,12,22,6,14,-73,-80,-75,-85,-81,-77,-113,-91,-145,-86,-93,-92,-163,-145,-325,-226,-320,-308,-414,-245,-687,-704,-673,-464,-800,-459,-622,-619,-609,-592,-594,-589,-562,-552,-1694,-1631,-5429,-4475,-29990,-29991,-29998,-29999]} 1. e4 {[%emt 0:00:03]} c5 {[%emt 0:00:10]} 2. Nf3 {[%emt 0:00:05]} e6 {[%emt 0:00:06]} 3. d4 {[%emt 0:00:05]} cxd4 {[%emt 0:00:05]} 4. Nxd4 {[%emt 0:00:06]} Nc6 {[%emt 0:00:05]} 5. Nc3 {[%emt 0:00:07]} Qc7 {[%emt 0:00:06]} 6. g4 {[%emt 0:01:02] B47: Sicilian: Taimanov: 5 Nc3 Qc7 6 f4, 6 g3 and 6 Be2.} Nxd4 {[%emt 0:07:41]} 7. Qxd4 {[%emt 0:00:07] [#] Threatens to win with Nb5.} Nf6 {[%emt 0:00:43] [#]} 8. Rg1 $146 {[%emt 0:10:11] White is slightly better.} ({Predecessor:} 8. e5 Bc5 9. Qf4 Nd5 10. Nxd5 exd5 11. Bd2 O-O 12. O-O-O d6 13. Bc3 d4 14. Bxd4 Bxd4 15. Qxd4 dxe5 16. Qe4 Be6 17. Bd3 g6 {½-½ (17) Ortega Lopez,M (2256)-Gonzalez Pereira,A (2067) Bergara 2019}) 8... Bc5 {[%emt 0:02:17]} ({Resist} 8... Qxh2 9. Rg3 b6 10. g5 $16) 9. Qd3 {[%emt 0:01:30]} d5 {[%emt 0:13:11]} 10. g5 {[%emt 0:07:03]} (10. Be3 $1 $11) 10... Nxe4 $17 {[%emt 0:01:02]} (10... Qxh2 $2 11. Rg2 Qd6 12. gxf6 $18) 11. Nxe4 {[%emt 0:00:22]} dxe4 {[%emt 0:00:08]} 12. Qxe4 {[%emt 0:00:14]} Bd7 {[%emt 0:01:13]} ({Don't play} 12... Qxh2 $6 13. Rg2 Qd6 14. Bf4 $11) 13. Bd3 {[%emt 0:08:23]} Bc6 {[%emt 0:03:22]} 14. Qh4 {[%emt 0:01:08]} ({Better is} 14. Qf4 Bd6 15. Qe3) 14... Qe5+ {[%emt 0:01:13]} (14... O-O-O $142 15. Kf1 Rd4) 15. Kf1 {[%emt 0:03:01]} O-O-O {[%emt 0:01:31][%cal Od8d3] ...Rxd3! is the strong threat. Black is more active.} 16. Rg4 {[%emt 0:02:01]} (16. Qg3 $17 Qd4 17. h4) 16... f6 {[%emt 0:14:59]} 17. Rb1 $2 {[%emt 0:03:30] White does not recover from this.} (17. gxf6 $17 gxf6 18. Bf4) 17... Rhf8 {[%emt 0:13:08]} 18. g6 {[%emt 0:01:31]} (18. Bf4 $142 Qd5 19. b4) 18... hxg6 {[%emt 0:00:58] And now ...Rh8 would win.} 19. b4 {[%emt 0:02:00] [#]} g5 $40 {[%emt 0:03:50][%mdl 128] Black wants a kill.} (19... Rxd3 $142 $1 {[%mdl 512]} 20. cxd3 Qc3) 20. Bb2 $2 {[%emt 0:03:57]} (20. Qg3 Bd6 21. Qxe5 Bxe5 22. Ke2) 20... Qd5 $19 {[%emt 0:04:22]} (20... gxh4 $2 {too greedy.} 21. Bxe5 Bb6 22. Bc3 $19) 21. Qg3 {[%emt 0:01:16]} Bd6 {[%emt 0:00:35]} 22. Qe3 {[%emt 0:03:05]} (22. c4 $142 Qh1+ 23. Ke2) 22... Bxh2 {[%emt 0:03:23]} 23. Ke2 {[%emt 0:02:01]} Bf4 {[%emt 0:00:29]} 24. Rxf4 {[%emt 0:02:38]} gxf4 {[%emt 0:00:08]} 25. Qxa7 {[%emt 0:00:04]} Qf3+ {[%emt 0:01:00]} 26. Kd2 {[%emt 0:00:18]} e5 {[%emt 0:04:51][%cal Be6e5,Be5e4][%mdl 32] Prevents Bd4. Strongly threatening ...e4.} 27. Qc5 {[%emt 0:02:45]} e4 {[%emt 0:01:13][%cal Rd8d3]} 28. b5 {[%emt 0:00:04]} exd3 {[%emt 0:00:20]} 29. bxc6 {[%emt 0:00:04]} dxc2+ {[%emt 0:00:52]} 30. Kxc2 {[%emt 0:00:05]} Qd3+ {[%emt 0:00:08] Weighted Error Value: White=1.41/Black=0.53} 0-1

[Event "12th WLC Weekend 2022"]
[Site "Eindhoven"]
[Date "2022.05.15"]
[Round "5.23"]
[White "Simons, Rudy"]
[Black "Weijers, Ralf"]
[Result "0-1"]
[ECO "C41"]
[WhiteElo "2046"]
[BlackElo "1857"]
[Annotator "TA"]
[PlyCount "69"]
[EventDate "2022.05.13"]
[EventType "swiss"]
[EventCountry "NED"]
[SourceTitle "playchess.com"]
[Source "ChessBase"]
[SourceQuality "1"]
[TimeControl "5400+30"]

{[%evp 10,69,47,39,39,39,70,45,39,36,67,39,78,49,81,52,52,23,13,0,18,10,35,18,43,20,8,0,0,-71,-34,-25,50,18,47,34,33,0,0,0,0,0,12,21,94,63,28,0,0,0,0,0,0,-373,-373,-992,-985,-892,-733,-693,-565,-497]} 1. e4 {[%emt 0:00:02]} d6 {[%emt 0:00:04]} 2. d4 {[%emt 0:00:09]} Nf6 {[%emt 0:00:04]} 3. Nc3 {[%emt 0:00:06]} Nbd7 {[%emt 0:00:04]} 4. Nf3 {[%emt 0:00:08]} e5 {[%emt 0:00:06]} 5. Bc4 {[%emt 0:00:08]} h6 {[%emt 0:00:09]} 6. O-O {[%emt 0:00:09]} c6 {[%emt 0:00:11] C41: Philidor Defence.} 7. a4 {[%emt 0:00:05]} Qc7 {[%emt 0:00:25]} 8. Re1 {[%emt 0:04:17]} Be7 {[%emt 0:00:44] White is slightly better.} 9. h3 {[%emt 0:00:15]} Nf8 {[%emt 0:00:43]} 10. Be3 {[%emt 0:00:48]} Be6 {[%emt 0:01:28] [#] 10...Ng6 is setting a new trend.} 11. Qe2 $146 {[%emt 0:06:41]} ({Predecessor:} 11. Bxe6 Nxe6 12. d5 Nf8 13. a5 N8d7 14. a6 b6 15. Qd2 O-O 16. dxc6 Qxc6 17. Nd5 Nxd5 18. exd5 {0-1 (26) Krug,S (2097)-Hilge,A (2124) Bayern 2018}) 11... g5 {[%emt 0:07:30]} 12. dxe5 {[%emt 0:26:37]} dxe5 {[%emt 0:00:49]} 13. Bxe6 {[%emt 0:01:55]} Nxe6 {[%emt 0:00:51]} 14. Qc4 {[%emt 0:00:07]} (14. Nh2) 14... Rg8 {[%emt 0:01:58]} 15. a5 {[%emt 0:07:18]} h5 {[%emt 0:01:26]} 16. h4 {[%emt 0:20:42][%cal Rf3g5]} Nh7 {[%emt 0:08:09]} 17. hxg5 {[%emt 0:03:53]} (17. a6 {is more complex.} b5 18. Nxb5 cxb5 19. Qxb5+ Qd7 20. Qb7) 17... Nhxg5 {[%emt 0:00:49]} 18. Nxg5 {[%emt 0:00:24]} Bxg5 {[%emt 0:00:50]} 19. a6 {[%emt 0:07:47]} (19. Bxg5 $11 Rxg5 20. Red1) 19... b6 {[%emt 0:03:01]} 20. Rad1 {[%emt 0:02:49]} Rd8 {[%emt 0:02:04]} (20... h4 $11) 21. Rxd8+ {[%emt 0:00:16]} Kxd8 {[%emt 0:01:10]} 22. Bxg5+ $1 {[%emt 0:03:04]} Rxg5 {[%emt 0:00:34]} 23. Ne2 {[%emt 0:00:28]} h4 {[%emt 0:04:18]} 24. Rd1+ {[%emt 0:00:21]} Kc8 {[%emt 0:01:10]} 25. b4 {[%emt 0:02:47][%cal Bb2b4,Bb4b5][%mdl 32]} Rg6 {[%emt 0:03:55]} 26. b5 {[%emt 0:01:04]} Ng5 {[%emt 0:00:56]} (26... Nc5 $11 {keeps the balance.}) 27. Rd3 {[%emt 0:01:15] [#] And now Nc3 would win.} h3 {[%emt 0:06:47]} 28. g3 {[%emt 0:00:20]} Rd6 {[%emt 0:00:37]} 29. Kh2 {[%emt 0:02:50]} Rf6 {[%emt 0:04:38]} 30. f4 {[%emt 0:03:25]} exf4 {[%emt 0:02:32]} 31. e5 $2 {[%emt 0:00:51][%mdl 8192]} (31. Nxf4 $11 Rxf4 32. gxf4 Qxf4+ 33. Kg1) 31... fxg3+ $19 {[%emt 0:00:54]} 32. Rxg3 $2 {[%emt 0:00:36]} (32. Nxg3 Qxe5 33. Qg4+ Qe6 34. Qxe6+ (34. Qxg5 {gets mated.} Rf2+ 35. Kh1 Qe1+) 34... fxe6 35. Rc3) 32... Qxe5 {[%emt 0:05:50] [#] Strongly threatening ...Ne4. Black is clearly winning.} 33. Qg4+ {[%emt 0:02:06]} Ne6 {[%emt 0:00:02] ...Rf2+ is the strong threat.} 34. Kxh3 {[%emt 0:01:00]} Rh6+ {[%emt 0:00:20]} 35. Kg2 {[%emt 0:03:17] Weighted Error Value: White=0.53/Black=0.26 (precise)} 0-1